[Event "Chigorin Memorial 2019"]
[Site "Saint Petersburg"]
[Date "2019.10.13"]
[Round "9.1"]
[White "Kokarev, Dmitry"]
[Black "Bocharov, Ivan"]
[Result "1/2-1/2"]
[ECO "B53"]
[WhiteElo "2593"]
[BlackElo "2550"]
[Annotator "ChessBase"]
[PlyCount "85"]
[EventDate "2019.10.05"]
[EventType "swiss"]
[EventCountry "RUS"]
[SourceTitle "playchess.com"]
[Source "ChessBase"]
[SourceQuality "1"]
[TimeControl "5400+30"]

1. e4 {[%emt 0:00:00]} c5 {[%emt 0:00:00]} 2. Nf3 {[%emt 0:00:00]} d6 {[%emt 0:00:00]} 3. d4 {[%emt 0:00:00]} cxd4 {[%emt 0:00:00]} 4. Qxd4 {[%emt 0:00:09]} Nc6 {[%emt 0:00:11]} 5. Bb5 {[%emt 0:00:15]} Bd7 {[%emt 0:00:50]} 6. Qd3 {[%emt 0:00:14]} Nf6 {[%emt 0:01:28]} 7. c4 {[%emt 0:00:22]} g6 {[%emt 0:01:08]} 8. Nc3 {[%emt 0:00:42]} Bg7 {[%emt 0:00:39]} 9. O-O {[%emt 0:00:20]} a6 {[%emt 0:01:45]} 10. Bxc6 {[%emt 0:00:18]} Bxc6 {[%emt 0:00:34]} 11. Nd4 {[%emt 0:04:11]} Nd7 {[%emt 0:04:36]} 12. Be3 {[%emt 0:03:12]} O-O {[%emt 0:00:19]} 13. f3 {[%emt 0:00:50]} Rc8 {[%emt 0:02:26]} 14. Qd2 {[%emt 0:05:31]} Nc5 {[%emt 0:03:27]} 15. Rac1 {[%emt 0:02:20]} Ne6 {[%emt 0:03:31]} 16. Nxe6 {[%emt 0:04:21]} fxe6 {[%emt 0:00:02]} 17. Bd4 {[%emt 0:00:25]} Bxd4+ {[%emt 0:05:02]} 18. Qxd4 {[%emt 0:00:16]} Qa5 {[%emt 0:00:02]} 19. Rfe1 {[%emt 0:06:10]} e5 {[%emt 0:07:32]} 20. Qd2 {[%emt 0:03:20]} b5 {[%emt 0:01:20]} 21. cxb5 {[%emt 0:00:43]} axb5 {[%emt 0:00:10]} 22. b3 {[%emt 0:04:14]} Bb7 {[%emt 0:02:27]} 23. Rc2 {[%emt 0:19:40]} Rc7 {[%emt 0:07:52]} 24. Nd1 {[%emt 0:02:42]} Qxd2 {[%emt 0:06:56]} 25. Rxd2 {[%emt 0:03:09]} b4 {[%emt 0:00:02]} 26. Ne3 {[%emt 0:00:46]} Rfc8 {[%emt 0:03:10]} 27. Kf2 {[%emt 0:00:57]} Kf7 {[%emt 0:00:09]} 28. Rb1 {[%emt 0:01:36]} Ra8 {[%emt 0:12:51]} 29. Rbb2 {[%emt 0:00:57]} Ra5 {[%emt 0:01:22]} 30. Rdc2 {[%emt 0:01:55]} Rxc2+ {[%emt 0:01:03]} 31. Nxc2 {[%emt 0:00:20]} Rb5 {[%emt 0:00:02]} 32. Ke3 {[%emt 0:03:43]} e6 {[%emt 0:01:26]} 33. a3 {[%emt 0:00:45]} bxa3 {[%emt 0:00:46]} 34. Nxa3 {[%emt 0:00:16]} Rb4 {[%emt 0:00:02]} 35. Nc2 {[%emt 0:02:20]} Rb6 {[%emt 0:00:02]} 36. b4 {[%emt 0:01:55]} d5 {[%emt 0:00:06]} 37. b5 {[%emt 0:07:03]} g5 {[%emt 0:08:54]} 38. Na3 {[%emt 0:02:44]} Ke7 {[%emt 0:01:04]} 39. Rd2 {[%emt 0:01:37]} Rd6 {[%emt 0:00:54]} 40. Rc2 {[%emt 0:02:04]} Kd7 {[%emt 0:00:01]} 41. g3 {[%emt 0:01:00]} h6 {[%emt 0:02:53]} 42. Rc1 {[%emt 0:03:53]} Kd8 {[%emt 0:00:16]} 43. Rc2 {[%emt 0:01:24]} 1/2-1/2

[Event "Chigorin Memorial 2019"]
[Site "Saint Petersburg"]
[Date "2019.10.13"]
[Round "9.2"]
[White "Petrosyan, Manuel"]
[Black "Aleksandrov, Aleksej"]
[Result "0-1"]
[ECO "A17"]
[WhiteElo "2611"]
[BlackElo "2577"]
[Annotator "RC"]
[PlyCount "76"]
[EventDate "2019.10.05"]
[EventType "swiss"]
[EventCountry "RUS"]
[SourceTitle "playchess.com"]
[Source "ChessBase"]
[SourceQuality "1"]
[TimeControl "5400+30"]

1. c4 {[%emt 0:03:17]} e6 {[%emt 0:00:00]} 2. Nc3 {[%emt 0:00:06]} Nf6 {[%emt 0:00:12]} 3. Nf3 {[%emt 0:02:05]} d5 {[%emt 0:00:11]} 4. e3 {[%emt 0:00:05]} dxc4 {[%emt 0:00:35]} 5. Bxc4 {[%emt 0:00:18]} c5 {[%emt 0:00:37]} 6. b3 {[%emt 0:01:21]} b6 {[%emt 0:01:58]} 7. Bb2 {[%emt 0:01:52]} Bb7 {[%emt 0:00:05]} 8. O-O {[%emt 0:04:53]} a6 {[%emt 0:03:55]} 9. Qe2 {[%emt 0:10:47]} Nbd7 {[%emt 0:10:07]} 10. a4 {[%emt 0:02:54]} Bd6 {[%emt 0:00:16]} 11. d4 {[%emt 0:02:26]} O-O {[%emt 0:03:30]} 12. Rad1 {[%emt 0:08:49]} cxd4 {[%emt 0:01:09]} 13. exd4 {[%emt 0:00:04]} Bb4 {[%emt 0:09:45]} 14. d5 {[%emt 0:14:09]} b5 {[%emt 0:17:42]} 15. dxe6 {[%emt 0:15:48]} bxc4 {[%emt 0:00:07]} 16. Na2 {[%emt 0:03:04]} Qe7 {[%emt 0:09:28]} 17. Nxb4 {[%emt 0:05:39]} cxb3 {[%emt 0:19:35]} 18. Nd4 {[%emt 0:02:47]} fxe6 {[%emt 0:02:18]} 19. Ndc6 {[%emt 0:04:07]} Qf7 {[%emt 0:03:05]} 20. Na5 {[%emt 0:00:28]} Rfb8 {[%emt 0:03:06]} 21. Nxb7 {[%emt 0:04:39]} Rxb7 {[%emt 0:00:04]} 22. Nd3 {[%emt 0:04:00]} Rc8 {[%emt 0:02:13]} 23. Rc1 {[%emt 0:00:15]} Rbc7 {[%emt 0:00:04]} 24. Rxc7 {[%emt 0:01:19]} Rxc7 {[%emt 0:00:01]} 25. Rc1 {[%emt 0:00:09]} Rxc1+ {[%emt 0:00:30]} 26. Nxc1 {[%emt 0:00:05]} Nc5 {[%emt 0:00:07]} 27. Bd4 {[%emt 0:03:26]} Nfd7 {[%emt 0:01:21]} 28. g3 {[%emt 0:03:10]} Qf5 {[%emt 0:01:41]} 29. Qe3 {[%emt 0:00:26]} Qc2 {[%emt 0:02:17]} 30. Nxb3 {[%emt 0:01:44]} Qxb3 {[%emt 0:00:41]} 31. Qc1 {[%emt 0:00:42]} Qd5 {[%emt 0:00:20]} 32. Be3 {[%emt 0:00:05]} h6 {[%emt 0:01:08]} 33. h3 {[%emt 0:00:02]} Kf7 {[%emt 0:00:15]} 34. Kh2 {[%emt 0:00:10]} Nxa4 {[%emt 0:00:48]} 35. Qc7 {[%emt 0:00:01]} Nb2 {[%emt 0:00:29]} 36. Qf4+ {[%emt 0:00:49]} Kg8 {[%emt 0:01:19]} 37. Qc7 {[%emt 0:00:55]} Nc4 {[%emt 0:00:45]} 38. Bf4 {[%emt 0:01:30]} a5 {[%emt 0:00:15]} 0-1

[Event "Chigorin Memorial 2019"]
[Site "Saint Petersburg"]
[Date "2019.10.13"]
[Round "9.3"]
[White "Gareyev, Timur"]
[Black "Sivuk, Vitaly"]
[Result "0-1"]
[ECO "A00"]
[WhiteElo "2591"]
[BlackElo "2559"]
[Annotator "RC"]
[PlyCount "138"]
[EventDate "2019.10.05"]
[EventType "swiss"]
[EventCountry "RUS"]
[SourceTitle "playchess.com"]
[Source "ChessBase"]
[SourceQuality "1"]
[TimeControl "5400+30"]

1. g3 {[%emt 0:03:50]} d5 {[%emt 0:00:06]} 2. Bg2 {[%emt 0:00:53]} e5 {[%emt 0:01:15]} 3. d3 {[%emt 0:00:25]} c6 {[%emt 0:00:45]} 4. Nf3 {[%emt 0:00:10]} Bd6 {[%emt 0:00:18]} 5. e4 {[%emt 0:00:09]} Nf6 {[%emt 0:01:03]} 6. O-O {[%emt 0:00:28]} O-O {[%emt 0:03:18]} 7. Qe2 {[%emt 0:04:13]} Re8 {[%emt 0:01:07]} 8. a4 {[%emt 0:01:19]} h6 {[%emt 0:02:23]} 9. Nc3 {[%emt 0:02:19]} dxe4 {[%emt 0:07:53]} 10. dxe4 {[%emt 0:05:00]} a5 {[%emt 0:02:43]} 11. Rd1 {[%emt 0:00:40]} Qc7 {[%emt 0:01:59]} 12. Nh4 {[%emt 0:06:04]} Bg4 {[%emt 0:02:07]} 13. Bf3 {[%emt 0:03:16]} Be6 {[%emt 0:00:10]} 14. Nf5 {[%emt 0:01:09]} Bc5 {[%emt 0:01:16]} 15. g4 {[%emt 0:08:45]} Nbd7 {[%emt 0:01:32]} 16. Be3 {[%emt 0:09:54]} Bxe3 17. Qxe3 {[%emt 0:00:08]} Qb6 {[%emt 0:05:12]} 18. Qxb6 Nxb6 {[%emt 0:00:07]} 19. b3 {[%emt 0:06:18]} Rad8 {[%emt 0:02:18]} 20. Kf1 {[%emt 0:04:14]} Kf8 {[%emt 0:01:41]} 21. Ke1 {[%emt 0:01:34]} Rd7 {[%emt 0:01:22]} 22. Rxd7 Nbxd7 {[%emt 0:02:41]} 23. Ke2 Nc5 {[%emt 0:00:29]} 24. Ke3 {[%emt 0:08:02]} Rd8 {[%emt 0:00:31]} 25. Be2 {[%emt 0:03:51]} h5 {[%emt 0:13:54]} 26. g5 {[%emt 0:11:49]} Ncxe4 {[%emt 0:02:52]} 27. Nxg7 {[%emt 0:05:00]} Nxg5 {[%emt 0:01:12]} 28. Nxh5 {[%emt 0:03:37]} Nxh5 {[%emt 0:03:46]} 29. Bxh5 {[%emt 0:00:02]} Rd4 {[%emt 0:00:14]} 30. Rf1 {[%emt 0:02:47]} Rh4 {[%emt 0:00:32]} 31. Be2 {[%emt 0:00:03]} Rxh2 {[%emt 0:02:18]} 32. f4 {[%emt 0:00:03]} Rh3+ {[%emt 0:00:25]} 33. Kd2 {[%emt 0:00:11]} exf4 {[%emt 0:00:10]} 34. Rxf4 {[%emt 0:00:01]} Ke7 {[%emt 0:00:39]} 35. b4 {[%emt 0:00:03]} axb4 {[%emt 0:01:30]} 36. Rxb4 {[%emt 0:00:03]} Bc8 {[%emt 0:00:09]} 37. a5 {[%emt 0:00:36]} Kd6 {[%emt 0:02:48]} 38. Rd4+ {[%emt 0:01:21]} Kc7 {[%emt 0:00:32]} 39. Rf4 {[%emt 0:00:50]} f5 {[%emt 0:02:22]} 40. Bd3 {[%emt 0:01:38]} Nf3+ {[%emt 0:05:57]} 41. Ke2 {[%emt 0:02:20]} Ne5 {[%emt 0:00:19]} 42. Na4 {[%emt 0:01:14]} Ng6 {[%emt 0:03:08]} 43. Rd4 {[%emt 0:02:23]} Rh2+ {[%emt 0:03:27]} 44. Kd1 {[%emt 0:01:07]} Ne5 {[%emt 0:01:37]} 45. Nb6 {[%emt 0:01:51]} Nxd3 {[%emt 0:04:11]} 46. cxd3 {[%emt 0:01:54]} Ra2 {[%emt 0:03:39]} 47. Ra4 {[%emt 0:00:01]} Be6 {[%emt 0:03:57]} 48. Rxa2 {[%emt 0:00:36]} Bxa2 {[%emt 0:00:02]} 49. Ke2 {[%emt 0:00:46]} Kd6 {[%emt 0:00:23]} 50. d4 {[%emt 0:00:30]} c5 {[%emt 0:01:49]} 51. Ke3 {[%emt 0:00:01]} Bb3 {[%emt 0:02:36]} 52. Nc8+ {[%emt 0:00:49]} Kd7 {[%emt 0:00:45]} 53. Nb6+ {[%emt 0:01:27]} Kc6 {[%emt 0:00:09]} 54. Nc8 {[%emt 0:00:17]} Bc2 {[%emt 0:04:02]} 55. Ne7+ {[%emt 0:00:53]} Kd6 {[%emt 0:00:50]} 56. Nc8+ {[%emt 0:00:13]} Kd5 {[%emt 0:01:53]} 57. Ne7+ {[%emt 0:00:18]} Ke6 {[%emt 0:00:25]} 58. Ng6 {[%emt 0:01:00]} Kd6 {[%emt 0:00:30]} 59. Nf4 {[%emt 0:00:30]} Be4 {[%emt 0:01:47]} 60. Ne2 {[%emt 0:00:33]} Kd5 {[%emt 0:00:41]} 61. Nf4+ {[%emt 0:00:28]} Kc4 {[%emt 0:00:15]} 62. dxc5 {[%emt 0:00:33]} Kxc5 {[%emt 0:00:06]} 63. a6 {[%emt 0:00:28]} bxa6 {[%emt 0:00:21]} 64. Kd2 {[%emt 0:00:04]} Kd4 {[%emt 0:00:28]} 65. Ne6+ {[%emt 0:00:11]} Ke5 {[%emt 0:00:18]} 66. Nc5 {[%emt 0:01:09]} a5 {[%emt 0:00:05]} 67. Kc3 {[%emt 0:00:34]} f4 {[%emt 0:00:33]} 68. Nb3 {[%emt 0:00:22]} f3 {[%emt 0:01:37]} 69. Nxa5 {[%emt 0:00:19]} Bd5 {[%emt 0:03:01] Kd4+} 0-1

[Event "Chigorin Memorial 2019"]
[Site "Saint Petersburg"]
[Date "2019.10.13"]
[Round "9.4"]
[White "Khalifman, Alexander"]
[Black "Can, Isik"]
[Result "1/2-1/2"]
[ECO "D23"]
[WhiteElo "2614"]
[BlackElo "2361"]
[Annotator "RC"]
[PlyCount "44"]
[EventDate "2019.10.05"]
[EventType "swiss"]
[EventCountry "RUS"]
[SourceTitle "playchess.com"]
[Source "ChessBase"]
[SourceQuality "1"]
[TimeControl "5400+30"]

1. d4 {[%emt 0:00:00]} d5 {[%emt 0:00:00]} 2. c4 {[%emt 0:00:00]} c6 {[%emt 0:00:00]} 3. Nf3 {[%emt 0:00:00]} Nf6 {[%emt 0:00:00]} 4. Qb3 {[%emt 0:00:00]} dxc4 {[%emt 0:00:00]} 5. Qxc4 {[%emt 0:00:00]} Bg4 {[%emt 0:00:00]} 6. Nbd2 {[%emt 0:00:09]} Nbd7 {[%emt 0:00:21]} 7. g3 {[%emt 0:00:08]} e6 {[%emt 0:00:10]} 8. Bg2 {[%emt 0:00:05]} Be7 {[%emt 0:00:14]} 9. O-O {[%emt 0:00:09]} O-O {[%emt 0:00:04]} 10. b3 {[%emt 0:00:06]} Rc8 {[%emt 0:01:04]} 11. e3 {[%emt 0:00:11]} b5 {[%emt 0:25:07]} 12. Qd3 {[%emt 0:00:51]} Qb6 {[%emt 0:05:37]} 13. Bb2 {[%emt 0:03:26]} c5 {[%emt 0:04:23]} 14. Rfc1 {[%emt 0:00:27]} Bh5 {[%emt 0:08:37]} 15. Qf1 {[%emt 0:00:41]} a6 {[%emt 0:15:47]} 16. a3 {[%emt 0:04:10]} Bg6 {[%emt 0:05:04]} 17. dxc5 Bxc5 {[%emt 0:06:35]} 18. b4 {[%emt 0:16:58]} Bd6 {[%emt 0:00:32]} 19. Nh4 {[%emt 0:12:17]} Bh5 {[%emt 0:02:53]} 20. Nhf3 {[%emt 0:05:45]} Bg6 {[%emt 0:00:05]} 21. Nh4 {[%emt 0:00:04]} Bh5 {[%emt 0:00:03]} 22. Nhf3 {[%emt 0:00:05]} Bg6 {[%emt 0:00:06]} 1/2-1/2

[Event "Chigorin Memorial 2019"]
[Site "Saint Petersburg"]
[Date "2019.10.13"]
[Round "9.5"]
[White "Ter-Sahakyan, Samvel"]
[Black "Polschikov, Alexey"]
[Result "1-0"]
[ECO "C42"]
[WhiteElo "2616"]
[BlackElo "2416"]
[Annotator "RC"]
[PlyCount "117"]
[EventDate "2019.10.05"]
[EventType "swiss"]
[EventCountry "RUS"]
[SourceTitle "playchess.com"]
[Source "ChessBase"]
[SourceQuality "1"]
[TimeControl "5400+30"]

1. e4 {[%emt 0:00:00]} e5 {[%emt 0:07:07]} 2. Nf3 {[%emt 0:00:00]} Nf6 {[%emt 0:00:17]} 3. Nxe5 {[%emt 0:00:51]} d6 {[%emt 0:00:07]} 4. Nf3 {[%emt 0:00:29]} Nxe4 {[%emt 0:00:09]} 5. Nc3 {[%emt 0:00:43]} Nxc3 {[%emt 0:00:07]} 6. dxc3 {[%emt 0:00:05]} Be7 {[%emt 0:00:13]} 7. Be3 {[%emt 0:00:08]} Nc6 {[%emt 0:00:18]} 8. Bd3 {[%emt 0:01:04]} Be6 {[%emt 0:03:34]} 9. Qe2 {[%emt 0:02:34]} Qd7 {[%emt 0:06:37]} 10. O-O-O {[%emt 0:00:36]} Bf6 {[%emt 0:00:18]} 11. h3 {[%emt 0:10:43]} O-O-O {[%emt 0:15:00]} 12. Bb5 {[%emt 0:04:27]} Kb8 {[%emt 0:01:40]} 13. g4 {[%emt 0:03:06]} h6 {[%emt 0:01:42]} 14. Kb1 {[%emt 0:00:26]} Qe8 {[%emt 0:10:03]} 15. Rhe1 {[%emt 0:01:31]} Bd7 {[%emt 0:00:55]} 16. Qf1 {[%emt 0:13:44]} Ne5 {[%emt 0:03:33]} 17. Bxd7 Qxd7 18. Nxe5 {[%emt 0:17:42]} Bxe5 {[%emt 0:04:30]} 19. Bxa7+ {[%emt 0:00:06]} Kxa7 {[%emt 0:00:04]} 20. Rxe5 {[%emt 0:00:05]} dxe5 {[%emt 0:00:07]} 21. Rxd7 {[%emt 0:00:03]} Rxd7 {[%emt 0:00:10]} 22. b4 {[%emt 0:00:06]} Rhd8 {[%emt 0:17:19]} 23. Kb2 {[%emt 0:07:45]} f6 {[%emt 0:05:26]} 24. a4 {[%emt 0:03:20]} c5 {[%emt 0:04:56]} 25. b5 {[%emt 0:06:27]} b6 {[%emt 0:01:43]} 26. Qc4 {[%emt 0:02:05]} Rd5 {[%emt 0:01:33]} 27. Qa2 {[%emt 0:03:19]} Kb7 {[%emt 0:00:06]} 28. Qc4 {[%emt 0:01:02]} Ka7 {[%emt 0:03:42]} 29. Qe4 {[%emt 0:01:18]} R5d6 {[%emt 0:00:06]} 30. h4 {[%emt 0:01:47]} Kb8 {[%emt 0:02:30]} 31. f3 {[%emt 0:02:48]} Ka7 {[%emt 0:00:17]} 32. Kb3 {[%emt 0:00:34]} R8d7 {[%emt 0:01:01]} 33. h5 {[%emt 0:01:22]} Kb8 {[%emt 0:00:26]} 34. Qh7 {[%emt 0:02:10]} Ka7 {[%emt 0:00:57]} 35. Qg8 {[%emt 0:01:22]} Rc7 {[%emt 0:01:37]} 36. Kc4 {[%emt 0:01:10]} Rd1 {[%emt 0:01:02]} 37. a5 {[%emt 0:02:01]} bxa5 {[%emt 0:01:14]} 38. Qe6 {[%emt 0:00:14]} Rcd7 {[%emt 0:02:39]} 39. Qa6+ {[%emt 0:01:40]} Kb8 {[%emt 0:00:01]} 40. Qxa5 {[%emt 0:00:16]} Rb7 {[%emt 0:00:21]} 41. Qa2 {[%emt 0:03:07]} Ra7 {[%emt 0:02:23]} 42. Qb3 {[%emt 0:00:05]} Rc7 {[%emt 0:00:53]} 43. b6 {[%emt 0:00:25]} Rc6 {[%emt 0:00:16]} 44. Kb5 {[%emt 0:00:46]} Rc8 {[%emt 0:03:25]} 45. Qf7 {[%emt 0:04:28]} Ra1 {[%emt 0:00:02]} 46. Kc4 {[%emt 0:01:29]} Ra4+ {[%emt 0:00:29]} 47. Kd5 {[%emt 0:00:34]} e4 {[%emt 0:00:35]} 48. fxe4 {[%emt 0:01:14]} Ra6 {[%emt 0:00:37]} 49. Qxg7 {[%emt 0:00:29]} Rxb6 {[%emt 0:00:07]} 50. Qxh6 {[%emt 0:00:20]} c4 {[%emt 0:00:23]} 51. Kd4 {[%emt 0:00:41]} Re8 {[%emt 0:00:20]} 52. Qg6 {[%emt 0:00:44]} Rd6+ {[%emt 0:01:02]} 53. Ke3 {[%emt 0:00:18]} Red8 {[%emt 0:00:23]} 54. h6 {[%emt 0:00:28]} Rd1 {[%emt 0:00:07]} 55. Qxf6 {[%emt 0:00:47]} Re1+ {[%emt 0:00:32]} 56. Kf2 {[%emt 0:00:10]} Rdd1 {[%emt 0:00:02]} 57. h7 {[%emt 0:00:54]} Rf1+ {[%emt 0:00:06]} 58. Kg3 {[%emt 0:00:20]} Rg1+ {[%emt 0:00:57]} 59. Kf4 {[%emt 0:00:14]} 1-0

[Event "Chigorin Memorial 2019"]
[Site "Saint Petersburg"]
[Date "2019.10.13"]
[Round "9.7"]
[White "Kardashevskiy, Evgeny"]
[Black "Smirin, Ilia"]
[Result "1/2-1/2"]
[ECO "E62"]
[WhiteElo "2428"]
[BlackElo "2599"]
[Annotator "ChessBase"]
[PlyCount "79"]
[EventDate "2019.10.05"]
[EventType "swiss"]
[EventCountry "RUS"]
[SourceTitle "playchess.com"]
[Source "ChessBase"]
[SourceQuality "1"]
[TimeControl "5400+30"]

1. d4 {[%emt 0:00:00]} Nf6 {[%emt 0:03:05]} 2. Nf3 {[%emt 0:00:00]} g6 {[%emt 0:00:09]} 3. c4 {[%emt 0:00:01]} Bg7 {[%emt 0:00:17]} 4. g3 {[%emt 0:00:13]} d6 {[%emt 0:02:35]} 5. Bg2 {[%emt 0:00:26]} O-O {[%emt 0:00:10]} 6. O-O {[%emt 0:00:17]} c6 {[%emt 0:00:06]} 7. Nc3 {[%emt 0:01:57]} a6 {[%emt 0:00:42]} 8. a4 {[%emt 0:04:29]} a5 {[%emt 0:00:33]} 9. h3 {[%emt 0:00:51]} Na6 {[%emt 0:01:33]} 10. e4 {[%emt 0:02:02]} Nd7 {[%emt 0:01:30]} 11. Be3 {[%emt 0:05:47]} e5 {[%emt 0:00:46]} 12. Qd2 {[%emt 0:05:15]} exd4 {[%emt 0:03:57]} 13. Nxd4 {[%emt 0:03:42]} Ne5 {[%emt 0:04:32]} 14. Qe2 {[%emt 0:04:26]} Re8 {[%emt 0:01:15]} 15. Rad1 {[%emt 0:01:12]} Qc7 {[%emt 0:02:27]} 16. Rd2 {[%emt 0:07:22]} Qe7 {[%emt 0:15:38]} 17. b3 {[%emt 0:06:37]} Nc5 {[%emt 0:02:01]} 18. Qd1 {[%emt 0:00:52]} Ned7 {[%emt 0:04:35]} 19. Qc2 {[%emt 0:06:40]} Ra6 {[%emt 0:02:35]} 20. Rfd1 {[%emt 0:06:13]} Nf6 {[%emt 0:00:36]} 21. f3 {[%emt 0:04:03]} d5 {[%emt 0:08:15]} 22. cxd5 {[%emt 0:04:12]} cxd5 {[%emt 0:02:00]} 23. Bg5 {[%emt 0:03:08]} dxe4 {[%emt 0:02:56]} 24. fxe4 {[%emt 0:04:32]} Qf8 {[%emt 0:11:25]} 25. Ndb5 {[%emt 0:06:32]} Ne6 {[%emt 0:00:18]} 26. Be3 {[%emt 0:01:12]} Nh5 {[%emt 0:00:45]} 27. Rd5 {[%emt 0:06:08]} Nxg3 {[%emt 0:01:27]} 28. Qf2 {[%emt 0:00:19]} Nh5 {[%emt 0:06:10]} 29. e5 {[%emt 0:00:24]} Bh6 {[%emt 0:05:31]} 30. Nd6 {[%emt 0:01:12]} Bxe3 {[%emt 0:00:47]} 31. Qxe3 {[%emt 0:00:05]} Nef4 {[%emt 0:02:33]} 32. Nxe8 {[%emt 0:00:54]} Nxd5 {[%emt 0:00:05]} 33. Nxd5 {[%emt 0:00:16]} Qxe8 {[%emt 0:00:33]} 34. Nc7 {[%emt 0:00:19]} Qe7 {[%emt 0:00:10]} 35. Nxa6 {[%emt 0:00:16]} bxa6 {[%emt 0:00:03]} 36. Qd4 {[%emt 0:00:54]} Kg7 {[%emt 0:00:21]} 37. e6+ {[%emt 0:02:15]} f6 {[%emt 0:00:07]} 38. Re1 {[%emt 0:06:00]} g5 {[%emt 0:00:24]} 39. h4 {[%emt 0:00:43]} h6 {[%emt 0:00:11]} 40. hxg5 {[%emt 0:00:08]} 1/2-1/2

[Event "Chigorin Memorial 2019"]
[Site "Saint Petersburg"]
[Date "2019.10.13"]
[Round "9.8"]
[White "Volkov, Sergey"]
[Black "Shubin, Kirill"]
[Result "1-0"]
[ECO "E10"]
[WhiteElo "2576"]
[BlackElo "2416"]
[Annotator "ChessBase"]
[PlyCount "65"]
[EventDate "2019.10.05"]
[EventType "swiss"]
[EventCountry "RUS"]
[SourceTitle "playchess.com"]
[Source "ChessBase"]
[SourceQuality "1"]
[TimeControl "5400+30"]

1. d4 {[%emt 0:00:00]} e6 {[%emt 0:00:00]} 2. c4 {[%emt 0:00:00]} Nf6 {[%emt 0:00:00]} 3. Nf3 {[%emt 0:00:00]} c5 {[%emt 0:00:00]} 4. d5 {[%emt 0:00:10]} b5 {[%emt 0:00:00]} 5. e4 {[%emt 0:00:46]} Nxe4 {[%emt 0:00:00]} 6. Bd3 {[%emt 0:00:05]} Nf6 {[%emt 0:00:00]} 7. Nc3 {[%emt 0:00:54]} bxc4 {[%emt 0:00:00]} 8. Bxc4 {[%emt 0:00:05]} Ba6 {[%emt 0:00:01]} 9. Bxa6 {[%emt 0:08:06]} Nxa6 {[%emt 0:00:03]} 10. O-O {[%emt 0:00:16]} Nc7 {[%emt 0:00:03]} 11. Re1 {[%emt 0:00:38]} d6 {[%emt 0:01:19]} 12. dxe6 {[%emt 0:05:43]} fxe6 {[%emt 0:02:40]} 13. Ng5 {[%emt 0:03:57]} Qd7 {[%emt 1:32:24]} 14. Qb3 {[%emt 0:14:01]} O-O-O {[%emt 0:00:00]} 15. Bf4 {[%emt 0:03:19]} Re8 {[%emt 0:00:00]} 16. Rad1 {[%emt 0:00:59]} h6 {[%emt 0:00:00]} 17. Nge4 {[%emt 0:06:48]} Nfd5 {[%emt 0:00:00]} 18. Bg3 {[%emt 0:03:19]} Qc6 {[%emt 0:00:00]} 19. a4 {[%emt 0:01:05]} a6 {[%emt 0:00:00]} 20. Nd2 {[%emt 0:05:38]} h5 {[%emt 0:00:00]} 21. h4 {[%emt 0:00:52]} Rh6 {[%emt 0:00:00]} 22. Nc4 {[%emt 0:01:20]} Rd8 {[%emt 0:00:00]} 23. Ne4 {[%emt 0:07:37]} Be7 {[%emt 0:00:00]} 24. Na5 {[%emt 0:01:47]} Qa8 {[%emt 0:00:00]} 25. Qf3 {[%emt 0:02:26]} Rf8 {[%emt 0:00:00]} 26. Qe2 {[%emt 0:01:22]} e5 {[%emt 0:00:00]} 27. b4 {[%emt 0:01:13]} Nxb4 {[%emt 0:00:00]} 28. Nxc5 {[%emt 0:00:48]} dxc5 {[%emt 0:00:00]} 29. Qxe5 {[%emt 0:00:11]} Nbd5 {[%emt 0:00:00]} 30. Qxg7 {[%emt 0:00:35]} Re6 {[%emt 0:00:00]} 31. Bxc7 {[%emt 0:01:02]} Rxe1+ {[%emt 0:00:00]} 32. Rxe1 {[%emt 0:00:03]} Kd7 {[%emt 0:00:00]} 33. Bg3 {[%emt 0:02:18]} 1-0

[Event "Chigorin Memorial 2019"]
[Site "Saint Petersburg"]
[Date "2019.10.13"]
[Round "9.9"]
[White "Smirnov, Artem"]
[Black "Lintchevski, Daniil"]
[Result "0-1"]
[ECO "E25"]
[WhiteElo "2416"]
[BlackElo "2537"]
[Annotator "ChessBase"]
[PlyCount "76"]
[EventDate "2019.10.05"]
[EventType "swiss"]
[EventCountry "RUS"]
[SourceTitle "playchess.com"]
[Source "ChessBase"]
[SourceQuality "1"]
[TimeControl "5400+30"]

1. d4 {[%emt 0:00:00]} Nf6 {[%emt 0:00:00]} 2. c4 {[%emt 0:00:00]} e6 {[%emt 0:00:00]} 3. Nc3 {[%emt 0:00:00]} Bb4 {[%emt 0:00:00]} 4. f3 {[%emt 0:00:00]} d5 {[%emt 0:00:34]} 5. a3 {[%emt 0:00:00]} Bxc3+ {[%emt 0:00:07]} 6. bxc3 {[%emt 0:00:02]} c5 {[%emt 0:00:09]} 7. cxd5 {[%emt 0:00:42]} Nxd5 {[%emt 0:00:07]} 8. dxc5 {[%emt 0:00:09]} f5 {[%emt 0:00:12]} 9. Nh3 {[%emt 0:01:51]} Qa5 {[%emt 0:03:27]} 10. Bd2 {[%emt 0:00:43]} Qxc5 {[%emt 0:02:12]} 11. c4 {[%emt 0:00:21]} Ne3 {[%emt 0:02:55]} 12. Qc1 {[%emt 0:00:34]} Nxf1 {[%emt 0:00:53]} 13. Bb4 {[%emt 0:00:41]} Qc7 {[%emt 0:03:42]} 14. Kxf1 {[%emt 0:00:35]} Nc6 {[%emt 0:00:53]} 15. Nf4 {[%emt 0:26:47]} Kf7 {[%emt 0:00:31]} 16. Rg1 {[%emt 0:02:44]} Qd8 {[%emt 0:21:35]} 17. Bc3 {[%emt 0:13:02]} e5 {[%emt 0:01:54]} 18. Nd3 {[%emt 0:06:46]} Re8 {[%emt 0:00:37]} 19. Qb2 {[%emt 0:00:52]} Qe7 {[%emt 0:08:04]} 20. f4 {[%emt 0:15:37]} Be6 {[%emt 0:02:41]} 21. Nxe5+ {[%emt 0:05:45]} Nxe5 {[%emt 0:00:04]} 22. Bxe5 {[%emt 0:00:03]} Bxc4 {[%emt 0:00:06]} 23. g4 {[%emt 0:02:16]} fxg4 {[%emt 0:03:44]} 24. Qc2 {[%emt 0:04:11]} Qc5 {[%emt 0:05:36]} 25. Qf5+ {[%emt 0:06:13]} Kg8 {[%emt 0:00:55]} 26. Rxg4 {[%emt 0:08:12]} Re7 {[%emt 0:00:58]} 27. Qf6 {[%emt 0:04:11]} Bxe2+ {[%emt 0:00:06]} 28. Kxe2 {[%emt 0:00:15]} Qc2+ {[%emt 0:00:17]} 29. Kf3 {[%emt 0:01:08]} Qd3+ {[%emt 0:00:29]} 30. Kf2 {[%emt 0:00:20]} Qd2+ {[%emt 0:00:03]} 31. Kf3 {[%emt 0:00:53]} Qd3+ {[%emt 0:00:01]} 32. Kf2 {[%emt 0:00:04]} Qd2+ {[%emt 0:00:03]} 33. Kg3 {[%emt 0:00:51]} Qe3+ {[%emt 0:00:07]} 34. Kh4 {[%emt 0:00:10]} Qf2+ {[%emt 0:00:02]} 35. Kh5 {[%emt 0:00:16]} Qxh2+ {[%emt 0:00:20]} 36. Qh4 {[%emt 0:00:56]} Rxe5+ {[%emt 0:00:12]} 37. fxe5 {[%emt 0:00:05]} Qxe5+ {[%emt 0:00:04]} 38. Qg5 {[%emt 0:01:07]} g6+ {[%emt 0:00:13]} 0-1